Cogmind - Beta 11.1 @@@ ROGUE MODE // 2022.04.23 @ 11:31:12 Player: Azken Zutik Result: Destroyed by 8R-AWN with 8R-AWN's Boregun Performance ------------- Evolutions (0) 0 Regions Visited (3) 600 Robots Destroyed (46) 230 Value Destroyed (841) 841 Prototype IDs (37) 740 Alien Tech Used (0) 0 Bonus (389) 389 TOTAL SCORE: 2800 Bonus ------- High Alert Combat Kills 89 Aligned with FarCom 300 Cogmind --------- Core Integrity 0/250 Matter 164/300 Energy 81/100 System Corruption 3% Temperature Cool (0) Movement Core (800) Ox15 Location -10/Exiles Parts ------- > --- POWER (1) -------- (None) > --- PROPULSION (2) --- (None) > --- UTILITY (2) ------ High-capacity Storage Unit Weapon Shielding > --- WEAPON (2) ------- Mining Claw Longsword +1 > --- INVENTORY (20) --- High-capacity Matter Pod (200) High-capacity Matter Pod (200) High-capacity Matter Pod (200) Seismic Detector Field Recycling Unit (0) Assault Rifle Light Assault Rifle Light Assault Rifle Heavy Assault Rifle Autogun Autogun Autogun Battle Cannon Grenade Launcher Datajack Peak State ------------ > --- POWER ------------ Light Ion Engine > --- PROPULSION ------- Light Treads Light Treads > --- UTILITY ---------- High-capacity Storage Unit Weapon Shielding > --- WEAPON ----------- Assault Rifle Longsword +1 > --- INVENTORY -------- Light Ion Engine Wheel High-capacity Matter Pod High-capacity Matter Pod High-capacity Matter Pod Seismic Detector Field Recycling Unit Light Assault Rifle Light Assault Rifle Heavy Assault Rifle Autogun Autogun Autogun Battle Cannon Grenade Launcher Datajack Mining Claw [Rating: 16] Favorites ----------- Power Light Ion Engine Engine Light Ion Engine Propulsion Light Treads Treads Light Treads Leg Aluminum Leg Wheel Wheel Utility Seismic Detector Device Seismic Detector Storage Large Storage Unit Protection Weapon Shielding Weapon Autogun Ballistic Gun Autogun Launcher Grenade Launcher Special Weapon Mining Laser Slashing Weapon Mining Claw Special Melee Weapon Datajack Build | -11 -10 -10 -10 ------- Run | Scr Mat Min Exi Slots Evolved . | . . . . Power . | . . . . Propulsion . | . . . . Utility . | . . . . Weapon . | . . . . Parts Attached 37 | 1 19 6 11 Power 2 | . . . 2 Engine 2 | . . . 2 Core . | . . . . Reactor . | . . . . Propulsion 5 | . 2 2 1 Treads 4 | . 2 2 . Leg . | . . . . Wheel 1 | . . . 1 Hover . | . . . . Flight . | . . . . Utility 8 | 1 3 2 2 Device 4 | 1 1 2 . Storage 3 | . 2 . 1 Processor . | . . . . Hackware . | . . . . Protection 1 | . . . 1 Artifact . | . . . . Weapon 22 | . 14 2 6 Energy Gun . | . . . . Energy Cannon . | . . . . Ballistic Gun 11 | . 9 1 1 Ballistic Cannon . | . . . . Launcher 6 | . 5 . 1 Special Weapon 1 | . . 1 . Impact Weapon . | . . . . Slashing Weapon 3 | . . . 3 Piercing Weapon . | . . . . Special Melee Weapon 1 | . . . 1 Unidentified Prototypes . | . . . . Parts Lost 8 | . 1 2 5 Power 2 | . . . 2 Propulsion 5 | . . 2 3 Utility . | . . . . Weapon 1 | . 1 . . Highest Loss Streak 5 | . 1 1 5 To Critical Strikes 5 | . . 1 4 Average Slot Usage (%) 99 | . 99 100 99 Engine 13 | . 14 14 13 Treads 27 | . 27 28 27 Device 12 | . 14 14 7 Storage 14 | . 14 14 14 Protection 1 | . . . 6 Ballistic Gun 16 | . 20 22 1 Launcher 3 | . 7 . . Special Weapon 1 | . . 5 . Slashing Weapon 3 | . . . 13 Special Melee Weapon 2 | . . . 12 Naked Turns . | . . . . Heaviest Build 49 | 12 30 30 49 Greatest Support 40 | 20 40 40 40 Greatest Overweight (x) 4 | . . . 4 Average Overweight (x) . | . . . . Largest Inventory Capacity 20 | 8 15 15 20 Average Capacity 14 | 8 11 15 18 Most Carried 20 | 8 15 15 20 Average Carried 13 | 6 10 14 17 Final Capacity 20 | 8 15 15 20 Final Carried 15 | 8 15 15 15 Class Distribution -------------------- 79% | Mutant 20% | Scavenger-Mutant Dominant Class ---------------- Mutant | -10/Materials Mutant | -10/Mines Scavenger-Mutant | -10/Exiles Resources | -11 -10 -10 -10 ----------- Run | Scr Mat Min Exi Matter Collected 1870 | 230 755 583 302 Remotely 122 | 55 . 67 . Salvage Created 1297 | 107 1013 175 2 Parts 77 | 5 64 8 . Haulers Intercepted 2 | . 2 . . Recyclers Shooed 5 | . 4 1 . Parts Field Recycled . | . . . . Retrieved Matter . | . . . . Parts Self-Destructed . | . . . . Prevented . | . . . . Kills | -11 -10 -10 -10 ------- Run | Scr Mat Min Exi Combat Hostiles Destroyed 31 | . 19 8 4 Guns 9 | . 1 8 . AOE 22 | . 18 . 4 Classes Destroyed 11 | 2 8 1 . Worker 3 | . 3 . . Builder 3 | . 3 . . Tunneler 2 | 2 . . . Hauler 2 | . 2 . . Recycler 6 | 1 5 . . Mechanic 1 | . 1 . . Operator 2 | . 2 . . Watcher 3 | . 3 . . Swarmer 9 | . 6 3 . Grunt 15 | . 13 2 . Assembled 7 | . . 3 4 Best Kill Streak 9 | 2 9 3 4 Combat Bots Only 6 | . 6 3 4 Max Kills in Single Turn 3 | 1 3 1 2 Gunslinging . | . . . . Exploded 2 | . 2 . 2 Melee . | . . . . Uniques/NPCs Destroyed . | . . . . Combat | -11 -10 -10 -10 -------- Run | Scr Mat Min Exi Damage Taken 1410 | . 545 242 623 Core 255 | . 34 27 194 Absorbed by Shields . | . . . . Redirected to Shielding 34 | . . . 34 Regen/Repaired (Parts) 52 | . 52 . . Core Remaining (%) 100 | 100 . . . Volleys Fired 106 | 5 66 27 8 Largest 2 | 2 2 2 1 Hottest 100 | 40 46 100 30 Shots Fired 172 | 10 98 56 8 Gun 131 | 10 66 55 . Cannon . | . . . . Launcher 40 | . 32 . 8 Special 1 | . . 1 . Kinetic 131 | 10 66 55 . Thermal 1 | . . 1 . Explosive 40 | . 32 . 8 Electromagnetic . | . . . . Robot Hit Streak 22 | 4 22 7 1 Robot Miss Streak 3 | 1 3 3 3 Penetration Max . | . . . . Secondary Targets . | . . . . Shots Hit Robots 109 | 6 53 30 20 Core Hits 82 | 3 56 12 11 Critical Kills 1 | . 1 . . Critical Parts Destroyed . | . . . . Critical Strikes 2 | . 1 . 1 Destroy 1 | . 1 . . Sever 1 | . . . 1 Melee Attacks 19 | . . . 19 Impact . | . . . . Slashing 14 | . . . 14 Piercing . | . . . . Sneak Attacks 5 | . . . 5 Combat Hostiles . | . . . . Follow-up Attacks 1 | . . . 1 Damage Inflicted 3977 | 67 2623 476 811 Guns 1222 | 67 692 463 . Cannons . | . . . . Explosions 2091 | . 1910 . 181 Melee 630 | . . . 630 Ramming 34 | . 21 13 . Kinetic 1222 | 67 692 463 . Thermal 209 | . 209 . . Explosive 1882 | . 1701 . 181 Electromagnetic . | . . . . Impact . | . . . . Slashing 630 | . . . 630 Piercing . | . . . . Highest Corruption 3 | . 3 3 3 Average Corruption 3 | . 3 3 3 Corruption Purged . | . . . . Corruption Blocked . | . . . . Effects 74 | . 21 33 20 Message Errors 15 | . 4 9 2 Matter Fused 19 | . 5 10 4 Heat Flow Errors 14 | . 5 2 7 Energy Discharges 9 | . 1 6 2 Data Loss (minor) 7 | . 3 1 3 Data Loss (major) 3 | . . 1 2 Misfires 3 | . . 3 . Alerts 2 | . 1 1 . Weapon Failures 2 | . 2 . . Overload Shots . | . . . . Overflow Damage 80 | . 80 . . Projectiles . | . . . . Explosions 80 | . 80 . . Melee . | . . . . Knockbacks . | . . . . Impact . | . . . . Kinetic . | . . . . Secondary . | . . . . Self-Inflicted Damage 60 | . 23 . 37 Shots 2 | . 1 . 1 Rammed 5 | . 4 1 . Targets Rammed 6 | . 5 1 . Kicked . | . . . . Crushed 1 | . 1 . . Highest Temperature 225 | . 225 204 224 Average Temperature 48 | . 40 27 92 Received Heat Transfer 168 | . 117 51 . Siege Activations . | . . . . Robots Corrupted . | . . . . Combat Hostiles . | . . . . Parts Fried . | . . . . Impact Corruptions . | . . . . Robots Melted . | . . . . Combat Hostiles . | . . . . Parts Melted . | . . . . Heat Transferred 150 | . 150 . . Parts Sabotaged . | . . . . Parts Stolen . | . . . . Parts Stripped . | . . . . Power Chain Reactions . | . . . . Missiles Intercepted . | . . . . Alert | -11 -10 -10 -10 ------- Run | Scr Mat Min Exi Peak Influence 702 | 15 702 234 . Initial 234 | . 9 234 . Average 307 | 9 502 66 . Maximum Alert Level 3 | . 3 1 . Low Security (%) 39 | 100 7 79 . Level 1 14 | . 9 20 . Level 2 44 | . 80 . . Level 3 1 | . 1 . . Level 4 . | . . . . Level 5 . | . . . . High Security . | . . . . Max Security . | . . . . Squads Dispatched 5 | . 5 . . Investigation 2 | . 2 . . Extermination . | . . . . Reinforcement 3 | . 3 . . Assault . | . . . . Garrison . | . . . . Intercept . | . . . . Searches Triggered . | . . . . Construction Impeded . | . . . . Haulers Reinforced . | . . . . Active Scanning Responses . | . . . . Cargo Convoy Interrupts . | . . . . Stealth | -11 -10 -10 -10 --------- Run | Scr Mat Min Exi Distress Signals 4 | . 4 . . Communications Jammed . | . . . . Distress Signals . | . . . . Times Spotted 47 | . 30 10 7 Peak Tracking Total 9 | . 5 3 9 Tactical Retreats 1 | . . 1 . Traps | -11 -10 -10 -10 ------- Run | Scr Mat Min Exi Traps Triggered 2 | . 2 . . Indirectly . | . . . . Trap Hack Attempts . | . . . . Triggered . | . . . . Disarmed . | . . . . Reprogrammed . | . . . . Reused . | . . . . Traps Extracted . | . . . . Installed . | . . . . Triggered . | . . . . Exploded 3 | . . . 3 Machines | -11 -10 -10 -10 ---------- Run | Scr Mat Min Exi Machines Disabled 12 | . 5 . 7 Max in Single Turn 5 | . 5 . 3 Machines Sabotaged . | . . . . Garrisons Compromised . | . . . . Overloaded Fab Kills . | . . . . Hacking | -11 -10 -10 -10 --------- Run | Scr Mat Min Exi Machines Accessed 9 | . 7 . 2 Terminals 4 | . 4 . . Fabricators . | . . . . Repair Stations 1 | . 1 . . Recycling Units 2 | . 2 . . Scanalyzers . | . . . . Garrison Access . | . . . . Total Hacks 17 | . 15 . 2 Successful 10 | . 8 . 2 Failed 7 | . 7 . . Catastrophic 1 | . 1 . . Database Lockouts . | . . . . Manual 9 | . 8 . 1 Terminals 9 | . 9 . . Fabricators . | . . . . Repair Stations 4 | . 4 . . Recycling Units 2 | . 2 . . Scanalyzers . | . . . . Garrison Access . | . . . . Terminal Hacks 5 | . 3 . 2 Record 1 | . . . 1 Robot Analysis 2 | . 2 . . Registered Components 1 | . 1 . . EX-Prototype ID Bank 1 | . . . 1 Fabricator Hacks . | . . . . Repair Station Hacks 2 | . 2 . . Scan Component 1 | . 1 . . Repair 1 | . 1 . . Recycling Unit Hacks . | . . . . Scanalyzer . | . . . . Garrison Access Hacks . | . . . . Unauthorized Hacks 3 | . 3 . . Terminals 1 | . 1 . . Assimilate 1 | . 1 . . Fabricators . | . . . . Repair Stations . | . . . . Recycling Units 2 | . 2 . . Tunnel 2 | . 2 . . Scanalyzers . | . . . . Garrison Access . | . . . . Data Cores Recovered . | . . . . Used . | . . . . Hacking Detections 5 | . 5 . . Full Trace Events . | . . . . Feedback Events . | . . . . Feedback Blocked . | . . . . Robot Schematics Acquired . | . . . . Robots Built . | . . . . Authchips . | . . . . Time . | . . . . Total Robot Build Rating . | . . . . Part Schematics Acquired . | . . . . Parts Built . | . . . . Authchips . | . . . . Time . | . . . . Total Part Build Rating . | . . . . Parts Repaired 1 | . 1 . . Time 13 | . 13 . . Parts Recycled . | . . . . Recycled Matter . | . . . . Retrieved Matter . | . . . . Retrieved Components . | . . . . Parts Scanalyzed . | . . . . Part Schematics Acquired . | . . . . Parts Damaged . | . . . . Bothacking | -11 -10 -10 -10 ------------ Run | Scr Mat Min Exi Used RIF Installer . | . . . . Robots Hacked 4 | . . . 4 Non-combat 3 | . . . 3 Combat 1 | . . . 1 Robot Hacks Applied 4 | . . . 4 parse_system 4 | . . . 4 Relay Couplers Released . | . . . . Fabnet Peak Effective % . | . . . . Robots Rewired . | . . . . Allies Hacked . | . . . . Hacks Repelled . | . . . . Allies | -11 -10 -10 -10 -------- Run | Scr Mat Min Exi Total Allies 1 | . 1 . . Largest Group 1 | . 1 1 . Highest-Rated Group 10 | . 10 10 . Highest-Rated Ally 10 | . 10 10 . Total Orders 8 | . 5 3 . STAY 6 | . 4 2 . FOLLOW 2 | . 1 1 . Ally Attacks . | . . . . Total Damage . | . . . . Kills . | . . . . Allies Corrupted . | . . . . Allies Melted . | . . . . Intel | -11 -10 -10 -10 ------- Run | Scr Mat Min Exi Robot Analysis Total 2 | . 2 . . Derelict Logs Recovered 2 | . . 2 . Drone Launches . | . . . . Drone Recoveries . | . . . . Exploration | -11 -10 -10 -10 ------------- Run | Scr Mat Min Exi Turns Passed 5850 | 65 2500 1943 1342 Spaces Moved 2555 | 28 1225 709 593 Core . | . . . . Treads 2514 | . 1216 709 589 Legs 37 | 28 9 . . Wheels 4 | . . . 4 Hover . | . . . . Flight . | . . . . Fastest Speed 120 | 120 120 160 140 Average Speed 171 | 120 159 160 211 Slowest Speed 240 | 120 160 160 240 Overloaded Moves . | . . . . Propulsion Burnouts . | . . . . Robots Hopped . | . . . . Cave-ins Triggered 1 | . 1 . . Exploration Rate (%) 66 | 3 96 95 71 Regions Visited 3 Branch Regions 2 Pre-discovered Areas 3 | . 2 . 1 Known Exits Taken . | . . . . Unknown Exits Taken 3 | 1 1 1 . Scrap Searched 1 | . . 1 . Spaces Dug 1 | . . 1 . Terrain Destroyed 206 | . 164 1 41 Melee . | . . . . Projectile 1 | . . 1 . AOE 205 | . 164 . 41 Terrain Rammed . | . . . . Walls Destroyed . | . . . . Machines Disabled . | . . . . Actions | -11 -10 -10 -10 --------- Run | Scr Mat Min Exi Total 3863 | 50 1679 1475 659 Wait 1076 | 15 334 717 10 Move 2552 | 27 1224 708 593 Hop . | . . . . Pick Up 39 | 2 19 8 10 Fast Attach 4 | 1 1 2 . Attach 5 | . 1 2 2 Detach . | . . . . Swap 28 | . 17 2 9 Drop 29 | . 12 8 9 Fire 106 | 5 66 27 8 Melee 18 | . . . 18 Ram . | . . . . Kick . | . . . . Crush 6 | . 5 1 . Escape Stasis . | . . . . Rewire . | . . . . Trap . | . . . . Miscellaneous . | . . . . Route ------- -11/Scrapyard -10/Materials (discovered 4 exits: [*Mat x3] / [*Min]) -10/Mines (discovered 3 exits: [*Mat x2] / *Exi) -10/Exiles (discovered 1 exit: [*Min]) History --------- Turn | Location | Event 7 | -11/Scrapyard | Discovered new exit (range 3) 66 | -11/Scrapyard | Entered Materials 314 | -10/Materials | Build established: Mutant 335 | -10/Materials | Discovered new exit (range 14) 415 | -10/Materials | Discovered new exit (range 15) 1308 | -10/Materials | Discovered new exit (range 4) 1481 | -10/Materials | Crushed by falling debris 1630 | -10/Materials | Repaired Grenade Launcher 1719 | -10/Materials | Discovered new exit (range 16) 2566 | -10/Materials | Entered Mines 2566 | -10/Mines | Accompanied by 1 ally 2667 | -10/Mines | Discovered new exit (range 5) 2778 | -10/Mines | Discovered new exit (range 15) 2826 | -10/Mines | Learned location of 1 exit from Materials 2912 | -10/Mines | A weapon hastily lodged in a ceiling crevice suddenly fell to the ground 3191 | -10/Mines | Assembled infested the area 3192 | -10/Mines | Learned Materials terminal intel 3257 | -10/Mines | Joined a pair of Derelicts in attacking an 0b10 outpost 4498 | -10/Mines | Deemed a non-threat by the Exiles lab entrance 4500 | -10/Mines | Discovered new exit (range 5) 4509 | -10/Mines | Entered Exiles 4552 | -10/Exiles | Met 8R-AWN 4586 | -10/Exiles | Met EX-HEX 4658 | -10/Exiles | Met EX-BIN 4677 | -10/Exiles | Aligned with FarCom system 4678 | -10/Exiles | Given EX-Vault access code 4725 | -10/Exiles | Opened EX-Vault 4733 | -10/Exiles | Found Longsword +1 4765 | -10/Exiles | Warned to stay clear of 0b10 Research branches 4811 | -10/Exiles | Build established: Scavenger-Mutant 4924 | -10/Exiles | Met EX-DEC 5002 | -10/Exiles | Learned location of Zion (-6) 5218 | -10/Exiles | Discovered new exit (range 12) 5724 | -10/Exiles | Attacked by the Exiles 5834 | -10/Exiles | Core integrity fell below 50% 5843 | -10/Exiles | Core integrity fell below 20% 5851 | -10/Exiles | Destroyed by 8R-AWN with 8R-AWN's Boregun Last Messages --------------- 05837_ Penetrated by HV Slug. 05837_ HV Slug penetrates Earth. 05837_ Penetrated by HV Slug. 05837_ Critical hit (Destroy). 05837_ Wheel destroyed. 05837_ HV Slug penetrates Earth. 05840_ Penetrated by HV Slug. 05840_ HV Slug penetrates Earth. 05840_ Penetrated by HV Slug. 05840_ HV Slug penetrates Earth. 05840_ Mining Claw follow-up attack on 8R-AWN. 05842_ Penetrated by HV Slug. 05844_ HV Slug penetrates Machine. 05844_ Destroyed 8R-AWN's Armor/TH. 05846_ Penetrated by HV Slug. 05849_ HV Slug penetrates Wall. 05849_ HV Slug penetrates Earth. 05849_ Penetrated by HV Slug. 05850_ 8R-AWN 8R-AWN's Boregun severed. 05851_ Penetrated by HV Slug. Map ----- +----------------------------------------------------+ | ?????????????????????????????????????????????????? | | ?????????????????????????????????????????????????? | | ?????????????????????????????????????????????????? | | ?????????????????????????????????????????????????" | | ???####??????????????????????????????????????????" | | ??## #????????????????????????????????????????#" | | ??# ????????????????????????????????????????#" | | ??# < ????????????????????????????????????????#" | | ??# ##??????????????????????????????????????#" | | ??# ??????????????????????????????????????## | | ??# #???????????????????????????????????????? | | ???# #??????????????#????????????????????????? | | ???# ##????????????? ????????????????????????? | | ????# #????????????#;#####???????????????????? | | ????# #######??????# "#?????? ????????????? | | ????# #""##?????# "#????? ?????????????? | | ????## #?????# "#???# ??????????????? | | ?????##" ##???## " #??# #???????######?? | | ?????#"" ##### #?# #???????? """#?? | | ?????#### ## ## #?????????" """#?? | | ????????## #"" # #?????????"" #?? | | ?????????#"## # ###????????"" #?? | | ?????????####### # #????????"" "#?? | | ???????????????### # #???????? ""??? | | ?????????########" #??????????" "???? | | ?????????# ! @ #??????????# #???? | | ?????????#! ##g #???### ##?# | | ?????????#! ! #### ### X# "### | | ?????????#! ! ## "" | | ?????????# ! """ # ## " " | | ?????????####### ## ## | | ??????????????################ % | | ?????????????????????????????### | | ???????????????????????????????## | | ????????????????????????????????## | | ?????????????????????????????????##" | | ??????????????????????????????????#""" | | ?????????????????????????????????##" | | ?????????????????????????????????#"" | | ????????????????????????????????##""" "" | | ????????????????????????????????#""" """ | | ????????????????????????????????#""" "" | | ????????????????????????????????#"" # | | ????????????????????????????????#""" | | ????????????????????????????????#"" | | ????????????????????????????????##"" | | ?????????????????????????????????#"""" | | ?????????????????????????????????## | | ??????????????????????????????????#" | | ??????????????????????????????????#"""" | +----------------------------------------------------+ Best States ------------- Heat Dissipation 25 Energy Generation 10 Energy Capacity 125 Matter Stores 300 Matter Capacity 300 Sight Range 16 Terrain Scan Density 10 Weapon Shielding 33 Evasion (%) 55 Recoil Reduction 2 Item Schematics ----------------- None Robot Schematics ------------------ None Fabricated ------------ Nothing Alien Tech Used ----------------- None Achievements -------------- None Challenges ------------ None Game ------ Seed CouplerCarbideExoskeleton Manual? 0 Play Time 00:31:35 Cumulative 298.7 hours Start 2022.04.22 @ 20:46:57 End 2022.04.23 @ 11:31:12 Sessions 1 Manual Loads 0 Difficulty Rogue Special Mode None Game No. 89 Rogue 89 Adventurer 0 Explorer 0 Win Type - Total 6 Types 3/1/0/0/2/0/0/0/0 Lore% 59 Gallery% 73 Achievement% 66 Wizard Run 0 Options --------- ASCII 0 Keyboard 0 Movement Arrows Keybinds 0 Fullscreen 0 Font 28/SmallcapsGlow Map View 72x54 Tactical HUD 1 Map Filters NONE Filters NONE Steam 1 RUN: bf0b94d2-f1c8-4c55-acc3-08724d5a4359